fUST/lending_fUST_20251004
["ID","MTS","AMOUNT","RATE_DAILY","PERIOD"]
[388966790,1759548664394,-670.94,0.0002598,9]
[388966791,1759548664410,-500.0,0.0002598,9]
[388966792,1759548664428,-1000.0,0.0002598,9]
[388966793,1759548664444,-2949.61,0.0002598,9]
[388966794,1759548664459,-500.0,0.0002598,9]
[388966795,1759548664474,-500.0,0.0002598,9]
[388966796,1759548664489,-500.0,0.0002598,9]
[388966797,1759548664504,-500.0,0.0002598,9]
[388966798,1759548664518,-500.0,0.0002598,9]
[388966799,1759548664533,-500.0,0.0002598,9]
[388966800,1759548664548,-500.0,0.0002598,9]
[388966801,1759548664562,-500.0,0.0002598,9]
[388966802,1759548664576,-500.0,0.0002598,9]
[388966803,1759548664591,-536.31,0.0002598,9]
[388966804,1759548664605,-500.0,0.0002598,9]
[388966805,1759548664620,-500.0,0.0002598,9]
[388966806,1759548664636,-500.0,0.0002598,9]
[388966807,1759548664651,-500.0,0.0002598,9]
[388966808,1759548664671,-500.0,0.0002598,9]
[388966809,1759548664691,-1250.61,0.0002598,9]
[388966810,1759548664710,-500.0,0.0002598,9]
[388966811,1759548664728,-500.0,0.0002598,9]
[388966812,1759548664744,-1311.78,0.0002598,9]
[388966813,1759548664760,-500.0,0.0002598,9]
[388966814,1759548664776,-500.0,0.0002598,9]
[388966815,1759548664791,-500.0,0.0002598,9]
[388966816,1759548664806,-767.0,0.0002598,9]
[388966817,1759548664820,-500.0,0.0002598,9]
[388966818,1759548664837,-899.32,0.0002598,9]
[388966819,1759548664853,-500.0,0.0002598,9]
[388966820,1759548664867,-500.0,0.0002598,9]
[388966821,1759548664882,-500.0,0.0002598,9]
[388966822,1759548664901,-500.0,0.0002598,9]
[388966823,1759548664914,-500.0,0.0002598,9]
[388966824,1759548664929,-500.0,0.0002598,9]
[388966825,1759548664944,-500.0,0.0002598,9]
[388966826,1759548664958,-500.0,0.0002598,9]
[388966827,1759548664975,-500.0,0.0002598,9]
[388966828,1759548664989,-665.21,0.0002598,9]
[388966829,1759548665002,-500.0,0.0002598,9]
[388966830,1759548665017,-500.0,0.0002598,9]
[388966831,1759548665032,-500.0,0.0002598,9]
[388966832,1759548665047,-942.81,0.0002598,9]
[388966833,1759548665062,-753.72,0.0002598,9]
[388966834,1759548665076,-500.0,0.0002598,9]
[388966835,1759548665090,-500.0,0.0002598,9]
[388966836,1759548665103,-500.0,0.0002598,9]
[388966837,1759548665117,-467.58598247,0.0002598,9]
[388966838,1759548665131,-500.0,0.0002598,9]
[388966839,1759548665145,-500.0,0.0002598,9]
[388966840,1759548665159,-500.0,0.0002598,9]
[388966841,1759548665173,-835.57,0.0002598,9]
[388966842,1759548665187,-500.0,0.0002598,9]
[388966843,1759548665201,-500.0,0.0002598,9]
[388966844,1759548665216,-1185.53,0.0002598,9]
[388966845,1759548665240,-500.0,0.0002598,9]
[388966846,1759548665255,-500.0,0.0002598,9]
[388966847,1759548665269,-500.0,0.0002598,9]
[388966848,1759548665425,-862.14,0.0002598,9]
[388966849,1759548665442,-500.0,0.0002598,9]
[388966850,1759548665451,-500.0,0.0002598,9]
[388966851,1759548665460,-4233.88,0.0002598,9]
[388966852,1759548665469,-500.0,0.0002598,9]
[388966853,1759548665478,-500.0,0.0002598,9]
[388966854,1759548665488,-500.0,0.0002598,9]
[388966855,1759548665496,-11413.76,0.0002598,9]
[388966856,1759548665506,-500.0,0.0002598,9]
[388966857,1759548665516,-500.0,0.0002598,9]
[388966858,1759548665525,-856.63,0.0002598,9]
[388966859,1759548665534,-634.36,0.0002598,9]
[388966860,1759548665543,-525.43,0.0002598,9]
[388966861,1759548665552,-600.54,0.0002598,9]
[388966862,1759548665561,-508.19,0.0002598,9]
[388966863,1759548665570,-500.0,0.0002598,9]
[388966864,1759548665579,-1265.55,0.0002598,9]
[388966865,1759548665588,-2001.23,0.0002598,9]
[388966866,1759548665597,-3169.3,0.0002598,9]
[388966867,1759548665606,-569.31,0.0002598,9]
[388966868,1759548665615,-7048.6,0.0002598,9]
[388966869,1759548665624,-500.0,0.0002598,9]
[388966870,1759548665634,-500.0,0.0002598,9]
[388966871,1759548665643,-500.0,0.0002598,9]
[388966872,1759548665652,-180.0,0.00025992,2]
[388966873,1759548665661,-238.0,0.00026,2]
[388966874,1759548665670,-420.0,0.00026015,2]
[388966875,1759548665679,-500.0,0.00026027,9]
[388966876,1759548665688,-500.0,0.00026027,9]
[388966877,1759548665698,-500.0,0.00026027,9]
[388966878,1759548665707,-960.96,0.00026027,9]
[388966879,1759548665717,-500.0,0.00026027,9]
[388966880,1759548665727,-500.0,0.00026027,9]
[388966881,1759548665736,-712.51,0.00026027,9]
[388966882,1759548665745,-1106.89,0.00026027,9]
[388966883,1759548665754,-667.06,0.00026027,9]
[388966884,1759548665763,-500.0,0.00026027,15]
[388966885,1759548665773,-500.0,0.00026027,15]
[388966886,1759548665782,-1788.75,0.00026027,9]
[388966887,1759548665791,-500.0,0.00026027,15]
[388966888,1759548665800,-500.0,0.00026027,15]
[388966889,1759548665809,-500.0,0.00026027,15]
[388966890,1759548665818,-500.0,0.00026027,15]
[388966891,1759548665828,-500.0,0.00026027,15]
[388966892,1759548665836,-500.0,0.00026027,15]
[388966893,1759548665846,-500.0,0.00026027,15]
[388966894,1759548665855,-458.1176446,0.00026027,15]
[388966895,1759548665864,-1820.06,0.00026027,9]
[388966896,1759548665873,-500.0,0.00026027,9]
[388966897,1759548665882,-500.0,0.00026027,9]
[388966898,1759548665891,-769.39,0.00026027,9]
[388966899,1759548665900,-500.0,0.00026027,9]
[388966900,1759548665910,-500.0,0.00026028,9]
[388966901,1759548665920,-1317.9,0.00026028,9]
[388966902,1759548665929,-500.0,0.00026028,9]
[388966903,1759548665939,-500.0,0.00026028,9]
[388966904,1759548665949,-7349.02,0.00026028,9]
[388966905,1759548665959,-2161.96,0.00026028,9]
[388966906,1759548665969,-842.12,0.00026028,9]
[388966907,1759548665979,-500.0,0.00026028,9]
[388966908,1759548665988,-500.0,0.00026028,9]
[388966909,1759548665998,-767.31,0.00026028,9]
[388966910,1759548666007,-2556.15,0.00026028,9]
[388966911,1759548666017,-1333.55,0.00026028,9]
[388966912,1759548666028,-500.0,0.00026028,9]
[388966913,1759548666037,-2322.13,0.00026028,9]
[388966914,1759548666047,-1628.92,0.00026028,9]
[388966915,1759548666057,-2034.82,0.00026028,9]
[388966916,1759548666066,-500.0,0.00026028,9]
[388966917,1759548666085,-1996.29,0.00026028,9]
[388966918,1759548666097,-609.17,0.00026028,9]
[388966919,1759548666108,-4732.54,0.00026028,9]
[388966920,1759548666119,-500.0,0.00026029,2]
[388966921,1759548666128,-500.0,0.00026029,2]
[388966922,1759548666138,-627.26,0.00026029,9]
[388966923,1759548666147,-552.84,0.00026029,9]
[388966924,1759548666158,-390.99962523,0.00026029,9]
[388966925,1759548666168,-500.0,0.00026029,9]
[388966926,1759548666177,-500.0,0.00026029,9]
[388966927,1759548666187,-679.74,0.00026029,9]
[388966928,1759548666198,-500.0,0.00026029,9]
[388966929,1759548666207,-500.0,0.00026029,9]
[388966930,1759548666217,-500.0,0.00026029,9]
[388966931,1759548666229,-379.33966233,0.00026029,7]
[388966932,1759548666239,-500.0,0.00026029,9]
[388966933,1759548666249,-500.0,0.00026029,9]
[388966934,1759548666258,-1507.53,0.00026029,9]
[388966935,1759548666268,-863.65,0.00026029,9]
[388966936,1759548666280,-500.0,0.00026029,9]
[388966937,1759548666290,-2466.49,0.00026029,9]
[388966938,1759548666300,-390.99598464,0.00026029,9]
[388966939,1759548666311,-695.27,0.00026029,9]
[388966940,1759548666320,-500.0,0.00026029,9]
[388966941,1759548666330,-1093.7,0.00026029,9]
[388966942,1759548666340,-500.0,0.00026029,9]
[388966943,1759548666350,-554.08,0.00026029,9]
[388966944,1759548666360,-500.0,0.00026029,9]
[388966945,1759548666370,-2087.09,0.00026029,9]
[388966946,1759548666380,-841.56,0.00026029,9]
[388966947,1759548666389,-2032.8,0.00026029,9]
[388966948,1759548666399,-1433.89,0.00026029,9]
[388966949,1759548666408,-583.72,0.00026029,9]
[388966950,1759548666417,-2467.58,0.00026029,9]
[388966951,1759548666427,-2422.75,0.00026029,9]
[388966952,1759548666437,-3825.01,0.00026029,9]
[388966953,1759548666446,-500.0,0.00026029,9]
[388966954,1759548666456,-1224.75,0.00026029,9]
[388966955,1759548666466,-532.17,0.00026029,9]
[388966956,1759548666476,-500.0,0.00026029,9]
[388966957,1759548666487,-1254.95,0.00026029,9]
[388966958,1759548666496,-861.85,0.00026029,9]
[388966959,1759548666506,-556.05,0.00026029,9]
[388966960,1759548666515,-505.27,0.00026029,9]
[388966961,1759548666524,-1405.7,0.00026029,9]
[388966962,1759548666534,-956.2,0.00026029,9]
[388966963,1759548666543,-2767.1,0.00026029,9]
[388966964,1759548666552,-737.65,0.00026029,9]
[388966965,1759548666562,-1980.87,0.00026029,9]
[388966966,1759548666571,-1083.4,0.00026029,9]
[388966967,1759548666581,-500.0,0.00026029,9]
[388966968,1759548666591,-500.0,0.00026029,9]
[388966969,1759548666601,-762.0,0.00026029,9]
[388966970,1759548666611,-2922.08,0.00026029,9]
[388966971,1759548666620,-500.0,0.00026029,9]
[388966972,1759548666629,-793.14,0.00026029,9]
[388966973,1759548666639,-400.5787892,0.0002603,9]
[388966974,1759548666648,-500.0,0.0002603,9]
[388966975,1759548666657,-630.28631653,0.0002603,9]
[388966976,1759548666667,-500.0,0.0002603,9]
[388966977,1759548666676,-500.0,0.0002603,9]
[388966978,1759548666687,-874.5,0.0002603,9]
[388966979,1759548666697,-769.08,0.0002603,9]
[388966980,1759548666707,-500.0,0.0002603,9]
[388966981,1759548666716,-500.0,0.0002603,9]
[388966982,1759548666726,-689.53,0.0002603,9]
[388966983,1759548666736,-500.0,0.0002603,9]
[388966984,1759548666746,-500.0,0.0002603,9]
[388966985,1759548666756,-500.0,0.0002603,9]
[388966986,1759548666766,-500.0,0.0002603,9]
[388966987,1759548666775,-500.0,0.0002603,9]
[388966988,1759548666785,-500.0,0.0002603,9]
[388966989,1759548666795,-220.44024266,0.0002603,9]
[388966990,1759548666805,-770.78,0.0002603,9]
[388966991,1759548666814,-500.0,0.0002603,9]
[388966992,1759548666824,-500.0,0.0002603,9]
[388966993,1759548666835,-500.0,0.0002603,9]
[388966994,1759548666845,-500.0,0.0002603,9]
[388966995,1759548666855,-500.0,0.0002603,9]
[388966996,1759548666865,-500.0,0.0002603,9]
[388966997,1759548666875,-500.0,0.0002603,9]
[388966998,1759548666884,-500.0,0.0002603,9]
[388966999,1759548666898,-500.0,0.0002603,9]
[388967000,1759548666908,-709.88,0.0002603,9]
[388967001,1759548666918,-737.02,0.0002603,9]
[388967002,1759548666928,-500.0,0.0002603,9]
[388967003,1759548666937,-829.8,0.0002603,9]
[388967004,1759548666947,-1125.89,0.0002603,9]
[388967005,1759548666956,-627.26,0.0002603,9]
[388967006,1759548666965,-277.25363014,0.0002603,9]
[388967007,1759548666975,-552.08,0.0002603,9]
[388967008,1759548666984,-774.45,0.0002603,9]
[388967009,1759548666994,-500.0,0.0002603,9]
[388967010,1759548667003,-500.0,0.0002603,9]
[388967011,1759548667013,-176.1742134,0.0002603,9]
[388967012,1759548667023,-500.0,0.0002603,9]
[388967013,1759548667032,-500.0,0.0002603,9]
[388967014,1759548667043,-500.0,0.0002603,9]
[388967015,1759548667052,-544.94432805,0.0002603,9]
[388967016,1759548667062,-500.0,0.0002603,9]
[388967017,1759548667071,-500.0,0.0002603,9]
[388967018,1759548667081,-500.0,0.0002603,9]
[388967019,1759548667091,-500.0,0.0002603,9]
[388967020,1759548667100,-500.0,0.0002603,9]
[388967021,1759548667110,-500.0,0.0002603,9]
[388967022,1759548667119,-500.0,0.0002603,9]
[388967023,1759548667128,-1559.89,0.0002603,9]
[388967024,1759548667291,-500.0,0.0002603,9]
[388967025,1759548667302,-500.0,0.0002603,9]
[388967026,1759548667311,-500.0,0.0002603,9]
[388967027,1759548667321,-500.0,0.0002603,9]
[388967028,1759548667330,-500.0,0.0002603,9]
[388967029,1759548667339,-500.0,0.0002603,9]
[388967030,1759548667348,-500.0,0.0002603,9]
[388967031,1759548667357,-500.0,0.0002603,9]
[388967032,1759548667366,-976.54,0.0002603,9]
[388967033,1759548667376,-500.0,0.0002603,9]
[388967034,1759548667385,-378.50053142,0.0002603,9]
[388967035,1759548667394,-500.0,0.0002603,9]
[388967036,1759548667403,-500.0,0.0002603,9]
[388967037,1759548667413,-500.0,0.0002603,9]
[388967038,1759548667422,-376.37495207,0.0002603,9]
[388967039,1759548667431,-500.0,0.0002603,9]
[388967040,1759548667441,-377.0312678,0.0002603,9]
[388967041,1759548667450,-331.43070736,0.0002603,9]
[388967042,1759548667459,-500.0,0.0002603,9]
[388967043,1759548667468,-1525.18,0.0002603,9]
[388967044,1759548667478,-500.0,0.0002603,9]
[388967045,1759548667487,-500.0,0.0002603,9]
[388967046,1759548667496,-500.0,0.0002603,9]
[388967047,1759548667506,-721.88,0.0002603,9]
[388967048,1759548667515,-1663.0,0.0002603,9]
[388967049,1759548667525,-500.0,0.0002603,9]
[388967050,1759548667535,-500.0,0.0002603,9]
[388967051,1759548667544,-883.7,0.0002603,9]
[388967052,1759548667553,-1380.18,0.0002603,9]
[388967053,1759548667563,-500.0,0.0002603,9]
[388967054,1759548667574,-500.0,0.0002603,9]
[388967055,1759548667583,-542.48,0.0002603,9]
[388967056,1759548667592,-363.2339348,0.0002603,2]
[388967057,1759548667602,-1170.27,0.0002603,9]
[388967058,1759548667611,-9306.08,0.0002603,3]
[388967059,1759548667620,-1041.66666667,0.0002603,3]
[388967060,1759548667629,-1125.42,0.0002603,9]
[388967061,1759548667638,-500.0,0.0002603,9]
[388967062,1759548667648,-1656.76,0.0002603,9]
[388967063,1759548667659,-5420.65,0.0002603,9]
[388967064,1759548667669,-500.0,0.0002603,9]
[388967065,1759548667678,-385.68224796,0.0002603,9]
[388967066,1759548667687,-500.0,0.0002603,9]
[388967067,1759548667696,-500.0,0.0002603,9]
[388967068,1759548667706,-500.0,0.0002603,9]
[388967069,1759548667715,-799.27,0.0002603,9]
[388967070,1759548667724,-1400.04,0.0002603,9]
[388967071,1759548667736,-500.0,0.0002603,9]
[388967072,1759548667745,-500.0,0.0002603,9]
[388967073,1759548667755,-500.0,0.0002603,9]
[388967074,1759548667764,-500.0,0.0002603,9]
[388967075,1759548667773,-500.0,0.0002603,9]
[388967076,1759548667783,-5464.98,0.0002603,9]
[388967077,1759548667793,-500.0,0.0002603,7]
[388967078,1759548667802,-500.0,0.0002603,9]
[388967079,1759548667812,-1397.27,0.0002603,9]
[388967080,1759548667822,-500.0,0.0002603,9]
[388967081,1759548667831,-3223.31,0.0002603,9]
[388967082,1759548667840,-500.0,0.0002603,9]
[388967083,1759548667849,-500.0,0.0002603,9]
[388967084,1759548667859,-155.643231,0.00026038,2]
[388967085,1759548667868,-503.0,0.00026045,2]
[388967086,1759548667877,-155.643231,0.00026068,16]
[388967087,1759548667888,-504.30773995,0.00026078,7]
[388967088,1759548667899,-157.18,0.00026149,2]
[388967089,1759548667909,-501.0,0.00026185,2]
[388967090,1759548667919,-902.26,0.00026209,9]
[388967091,1759548667930,-501.59873188,0.00026219,2]
[388967092,1759548667939,-902.26,0.00026219,9]
[388967093,1759548667949,-902.26,0.00026219,9]
[388967094,1759548667958,-500.0,0.00026219,9]
[388967095,1759548667970,-501.97557399,0.00026219,2]
[388967096,1759548667980,-500.0,0.00026219,9]
[388967097,1759548667990,-600.0,0.00026221,30]
[388967098,1759548667999,-180.0,0.00026234,7]
[388967099,1759548668008,-805.66327431,0.00026241,2]
[388967100,1759548668018,-443.67729943,0.00026242,9]
[388967101,1759548668028,-1053.45,0.00026242,9]
[388967102,1759548668037,-5436.53,0.00026242,9]
[388967103,1759548668046,-2166.99,0.00026242,9]
[388967104,1759548668055,-500.0,0.00026242,9]
[388967105,1759548668064,-500.0,0.00026243,9]
[388967106,1759548668073,-500.0,0.00026243,9]
[388967107,1759548668083,-1016.5,0.00026243,9]
[388967108,1759548668092,-500.0,0.00026243,9]
[388967109,1759548668101,-6029.59,0.00026243,9]
[388967110,1759548668110,-500.0,0.00026243,9]
[388967111,1759548668120,-573.67,0.00026243,9]
[388967112,1759548668129,-2444.74,0.00026243,9]
[388967113,1759548668139,-1768.56,0.00026243,9]
[388967114,1759548668148,-500.0,0.00026243,9]
[388967115,1759548668157,-500.0,0.00026243,9]
[388967116,1759548668166,-500.0,0.00026243,9]
[388967117,1759548668176,-500.0,0.00026243,9]
[388967118,1759548668185,-1217.87,0.00026243,9]
[388967119,1759548668194,-500.0,0.00026243,9]
[388967120,1759548668203,-1410.55,0.00026243,9]
[388967121,1759548668212,-1057.31,0.00026243,9]
[388967122,1759548668221,-500.0,0.00026243,9]
[388967123,1759548668230,-500.0,0.00026243,9]
[388967124,1759548668240,-418.52187975,0.00026243,9]
[388967125,1759548668250,-614.31,0.00026243,9]
[388967126,1759548668259,-500.0,0.00026243,9]
[388967127,1759548668269,-500.0,0.00026243,9]
[388967128,1759548668278,-500.0,0.00026243,9]
[388967129,1759548668287,-500.0,0.00026243,9]
[388967130,1759548668296,-500.0,0.00026243,9]
[388967131,1759548668305,-500.0,0.00026243,9]
[388967132,1759548668314,-1890.42,0.00026243,9]
[388967133,1759548668323,-500.0,0.00026243,9]
[388967134,1759548668332,-500.0,0.00026243,9]
[388967135,1759548668342,-1965.46,0.00026243,9]
[388967136,1759548668351,-859.98,0.00026243,9]
[388967137,1759548668361,-500.0,0.00026243,9]
[388967138,1759548668373,-500.0,0.00026243,9]
[388967139,1759548668382,-1488.36,0.00026243,9]
[388967140,1759548668391,-500.0,0.00026243,9]
[388967141,1759548668400,-500.0,0.00026243,9]
[388967142,1759548668409,-500.0,0.00026243,9]
[388967143,1759548668420,-1558.21,0.00026243,9]
[388967144,1759548668429,-863.04,0.00026243,9]
[388967145,1759548668439,-3806.56,0.00026243,9]
[388967146,1759548668448,-500.0,0.00026243,9]
[388967147,1759548668457,-500.0,0.00026243,9]
[388967148,1759548668466,-500.0,0.00026243,9]
[388967149,1759548668479,-500.0,0.00026243,9]
[388967150,1759548668489,-467.46221471,0.00026243,9]
[388967151,1759548668498,-1165.36,0.00026243,9]
[388967152,1759548668507,-500.0,0.00026243,9]
[388967153,1759548668516,-500.0,0.00026243,9]
[388967154,1759548668525,-500.0,0.00026243,9]
[388967155,1759548668535,-1527.31,0.00026243,9]
[388967156,1759548668544,-500.0,0.00026243,9]
[388967157,1759548668553,-500.0,0.00026243,9]
[388967158,1759548668562,-500.0,0.00026243,9]
[388967159,1759548668571,-500.0,0.00026243,9]
[388967160,1759548668580,-810.82,0.00026243,9]
[388967161,1759548668589,-1276.0,0.00026243,9]
[388967162,1759548668598,-1419.65,0.00026243,9]
[388967163,1759548668607,-638.49,0.00026243,9]
[388967164,1759548668616,-500.0,0.00026243,9]
[388967165,1759548668625,-500.0,0.00026243,9]
[388967166,1759548668634,-1942.23,0.00026243,9]
[388967167,1759548668643,-1546.13,0.00026243,9]
[388967168,1759548668651,-652.47,0.00026243,9]
[388967169,1759548668660,-602.28,0.00026243,9]
[388967170,1759548668669,-1501.75,0.00026243,9]
[388967171,1759548668678,-500.0,0.00026243,9]
[388967172,1759548668687,-500.0,0.00026243,9]
[388967173,1759548668696,-1174.69,0.00026243,9]
[388967174,1759548668705,-463.65531702,0.00026243,9]
[388967175,1759548668714,-4440.95,0.00026243,9]
[388967176,1759548668723,-2641.46,0.00026243,9]
[388967177,1759548668733,-500.0,0.00026243,9]
[388967178,1759548668743,-500.0,0.00026243,9]
[388967179,1759548668752,-1601.77,0.00026243,9]
[388967180,1759548668762,-500.0,0.00026243,9]
[388967181,1759548668771,-2137.08,0.00026243,9]
[388967182,1759548668781,-500.0,0.00026243,9]
[388967183,1759548668790,-500.0,0.00026243,9]
[388967184,1759548668799,-500.0,0.00026243,9]
[388967185,1759548668808,-3976.04,0.00026243,9]
[388967186,1759548668914,-1656.1,0.00026243,9]
[388967187,1759548668924,-802.56,0.00026243,9]
[388967188,1759548668933,-500.0,0.00026243,9]
[388967189,1759548668942,-500.0,0.00026243,9]
[388967190,1759548668951,-942.13,0.00026243,9]
[388967191,1759548668961,-500.0,0.00026244,9]
[388967192,1759548668970,-500.0,0.00026244,9]
[388967193,1759548668980,-500.0,0.00026244,9]
[388967194,1759548668989,-500.0,0.00026244,9]
[388967195,1759548668999,-539.32,0.00026244,9]
[388967196,1759548669009,-1379.65,0.00026244,9]
[388967197,1759548669019,-166.0,0.00026247,2]
[388967198,1759548669028,-500.0,0.00026253,9]
[388967199,1759548669038,-500.0,0.00026253,9]
[388967200,1759548669047,-500.0,0.00026253,9]
[388967201,1759548669056,-500.0,0.00026253,9]
[388967202,1759548669065,-500.0,0.00026254,9]
[388967203,1759548669074,-500.0,0.00026254,9]
[388967204,1759548669084,-530.77,0.00026254,9]
[388967205,1759548669094,-500.0,0.00026254,9]
[388967206,1759548669103,-507.5,0.00026254,9]
[388967207,1759548669112,-500.0,0.00026254,9]
[388967208,1759548669122,-500.0,0.00026254,9]
[388967209,1759548669131,-500.0,0.00026254,9]
[388967210,1759548669140,-500.0,0.00026254,9]
[388967211,1759548669149,-500.0,0.00026254,9]
[388967212,1759548669158,-500.0,0.00026254,9]
[388967213,1759548669168,-500.0,0.00026254,9]
[388967214,1759548669177,-500.0,0.00026254,9]
[388967215,1759548669187,-500.0,0.00026254,9]
[388967216,1759548669196,-1164.44,0.00026254,9]
[388967217,1759548669206,-500.0,0.00026254,9]
[388967218,1759548669215,-500.0,0.00026254,9]
[388967219,1759548669224,-500.0,0.00026254,9]
[388967220,1759548669234,-500.0,0.00026254,9]
[388967221,1759548669243,-500.0,0.00026254,9]
[388967222,1759548669253,-500.0,0.00026254,9]
[388967223,1759548669262,-500.0,0.00026254,9]
[388967224,1759548669272,-500.0,0.00026254,9]
[388967225,1759548669281,-500.0,0.00026254,9]
[388967226,1759548669290,-313.2259023,0.00026254,9]
[388967227,1759548669299,-500.0,0.00026254,9]
[388967228,1759548669309,-500.0,0.00026254,9]
[388967229,1759548669319,-500.0,0.00026254,9]
[388967230,1759548669328,-500.0,0.00026254,9]
[388967231,1759548669337,-500.0,0.00026254,9]
[388967232,1759548669346,-429.28569681,0.00026254,9]
[388967233,1759548669355,-312.17345558,0.00026254,9]
[388967234,1759548669365,-500.0,0.00026254,9]
[388967235,1759548669375,-500.0,0.00026254,9]
[388967236,1759548669384,-500.0,0.00026254,9]
[388967237,1759548669393,-500.0,0.00026254,9]
[388967238,1759548669402,-500.0,0.00026254,9]
[388967239,1759548669411,-500.0,0.00026254,9]
[388967240,1759548669420,-500.0,0.00026254,9]
[388967241,1759548669430,-533.21,0.00026254,9]
[388967242,1759548669439,-632.05154757,0.00026254,9]
[388967243,1759548669448,-501.87418188,0.00026254,9]
[388967244,1759548669457,-500.0,0.00026254,9]
[388967245,1759548669467,-500.0,0.00026254,9]
[388967246,1759548669478,-231.67763548,0.00026254,9]
[388967247,1759548669487,-500.0,0.00026254,9]
[388967248,1759548669497,-502.77251332,0.00026254,9]
[388967249,1759548669506,-500.0,0.00026254,9]
[388967250,1759548669517,-500.0,0.00026254,9]
[388967251,1759548669526,-937.05,0.00026254,9]
[388967252,1759548669536,-500.0,0.00026254,9]
[388967253,1759548669545,-1652.46,0.00026254,9]
[388967254,1759548669558,-500.0,0.00026254,9]
[388967255,1759548669574,-1000.0,0.00026254,9]
[388967256,1759548669583,-2264.79,0.00026254,9]
[388967257,1759548669592,-500.0,0.00026254,9]
[388967258,1759548669601,-1274.42,0.00026254,9]
[388967259,1759548669610,-685.9,0.00026254,9]
[388967260,1759548669619,-1767.33,0.00026254,9]
[388967261,1759548669628,-902.26,0.00026254,9]
[388967262,1759548669638,-500.0,0.00026254,9]
[388967263,1759548669647,-500.0,0.00026254,9]
[388967264,1759548669656,-500.0,0.00026254,9]
[388967265,1759548669666,-500.0,0.00026254,9]
[388967266,1759548669675,-786.32,0.00026254,9]
[388967267,1759548669684,-500.0,0.00026254,9]
[388967268,1759548669693,-500.0,0.00026254,9]
[388967269,1759548669702,-482.78830198,0.00026254,9]
[388967270,1759548669711,-500.0,0.00026254,9]
[388967271,1759548669720,-500.0,0.00026254,9]
[388967272,1759548669730,-500.0,0.00026254,9]
[388967273,1759548669740,-472.34014194,0.00026254,9]
[388967274,1759548669749,-500.0,0.00026254,9]
[388967275,1759548669758,-500.0,0.00026254,9]
[388967276,1759548669767,-500.0,0.00026254,9]
[388967277,1759548669776,-500.0,0.00026254,9]
[388967278,1759548669785,-500.0,0.00026254,9]
[388967279,1759548669795,-500.0,0.00026254,9]
[388967280,1759548669804,-500.0,0.00026254,9]
[388967281,1759548669813,-500.0,0.00026254,9]
[388967282,1759548669822,-500.0,0.00026254,9]
[388967283,1759548669831,-500.0,0.00026254,9]
[388967284,1759548669841,-500.0,0.00026254,9]
[388967285,1759548669850,-500.0,0.00026254,9]
[388967286,1759548669859,-716.21,0.00026254,9]
[388967287,1759548669868,-251.61,0.00026254,9]
[388967288,1759548669877,-265.32370453,0.00026254,9]
[388967289,1759548669886,-500.0,0.00026254,9]